[Event "Late-Titled-Tuesday-Blitz-February-06-2024"]
[Site "Chess.com"]
[Date "2024.02.06"]
[Round "9"]
[White "HajiyevKanan"]
[Black "Pelusiansky"]
[Result "0-1"]
[WhiteElo "2582"]
[BlackElo "2490"]
[TimeControl "180+1"]
[EndTime "15:46:39 PST"]
[Termination "Pelusiansky won by checkmate"]

1. d4 {[%clk 0:02:53.4]} 1... d5 {[%clk 0:02:59.5]} 2. Nf3 {[%clk 0:02:54.3]}
2... Nf6 {[%clk 0:02:59.5]} 3. c4 {[%clk 0:02:52.7]} 3... e6 {[%clk 0:02:59.6]}
4. cxd5 {[%clk 0:02:53.6]} 4... exd5 {[%clk 0:02:59.9]} 5. Nc3 {[%clk
0:02:54.4]} 5... c6 {[%clk 0:02:57.1]} 6. Qc2 {[%clk 0:02:54.5]} 6... g6 {[%clk
0:02:55.5]} 7. Bg5 {[%clk 0:02:54.8]} 7... Be7 {[%clk 0:02:53.7]} 8. e3 {[%clk
0:02:55.4]} 8... Bf5 {[%clk 0:02:52.5]} 9. Bd3 {[%clk 0:02:56.1]} 9... Bxd3
{[%clk 0:02:51.1]} 10. Qxd3 {[%clk 0:02:57]} 10... O-O {[%clk 0:02:51.8]} 11.
O-O {[%clk 0:02:56.9]} 11... Re8 {[%clk 0:02:52.3]} 12. Rab1 {[%clk 0:02:56.9]}
12... a5 {[%clk 0:02:51.2]} 13. a3 {[%clk 0:02:57.4]} 13... Na6 {[%clk
0:02:51.8]} 14. Ne5 {[%clk 0:02:53.6]} 14... Nd7 {[%clk 0:02:31.7]} 15. Bf4
{[%clk 0:02:27]} 15... Nf8 {[%clk 0:02:23.6]} 16. Bg3 {[%clk 0:02:25.2]} 16...
Ne6 {[%clk 0:02:18.1]} 17. f4 {[%clk 0:02:24.9]} 17... Ng7 {[%clk 0:02:18.2]}
18. Bf2 {[%clk 0:02:22.8]} 18... f6 {[%clk 0:02:11.8]} 19. Nf3 {[%clk
0:02:19.6]} 19... Qd7 {[%clk 0:02:08.2]} 20. Na4 {[%clk 0:02:13.3]} 20... Rad8
{[%clk 0:02:00.4]} 21. Qd2 {[%clk 0:01:57.5]} 21... Qc7 {[%clk 0:01:45.8]} 22.
Be1 {[%clk 0:01:53]} 22... b5 {[%clk 0:01:37.4]} 23. Nc3 {[%clk 0:01:44.7]}
23... b4 {[%clk 0:01:36.9]} 24. axb4 {[%clk 0:01:41.9]} 24... Nxb4 {[%clk
0:01:20.5]} 25. Rc1 {[%clk 0:01:40.9]} 25... Bd6 {[%clk 0:01:15.3]} 26. Bh4
{[%clk 0:01:28.2]} 26... Qe7 {[%clk 0:01:10.4]} 27. Ra1 {[%clk 0:01:22.5]} 27...
Bc7 {[%clk 0:01:04.9]} 28. Rfe1 {[%clk 0:01:14.8]} 28... Nf5 {[%clk 0:01:03.1]}
29. Bf2 {[%clk 0:01:13.3]} 29... Nd6 {[%clk 0:01:01.7]} 30. h3 {[%clk
0:01:08.3]} 30... Nc4 {[%clk 0:01:00.2]} 31. Qe2 {[%clk 0:01:01]} 31... Qf7
{[%clk 0:00:55.4]} 32. g3 {[%clk 0:00:34]} 32... Re7 {[%clk 0:00:52.5]} 33. Na2
{[%clk 0:00:31.7]} 33... Rde8 {[%clk 0:00:45.7]} 34. Nxb4 {[%clk 0:00:31.2]}
34... axb4 {[%clk 0:00:46.6]} 35. Ra7 {[%clk 0:00:11.2]} 35... Qe6 {[%clk
0:00:34.5]} 36. b3 {[%clk 0:00:07.9]} 36... Na3 {[%clk 0:00:28.5]} 37. Kg2
{[%clk 0:00:06.4]} 37... Nb5 {[%clk 0:00:27.9]} 38. Rb7 {[%clk 0:00:05.8]} 38...
Qc8 {[%clk 0:00:28.1]} 39. Rxb5 {[%clk 0:00:04.5]} 39... cxb5 {[%clk 0:00:28.6]}
40. Qxb5 {[%clk 0:00:05.3]} 40... Qe6 {[%clk 0:00:24.7]} 41. Qxb4 {[%clk
0:00:04.3]} 41... Bd6 {[%clk 0:00:25.2]} 42. Qb5 {[%clk 0:00:03]} 42... Rb8
{[%clk 0:00:22.5]} 43. Qd3 {[%clk 0:00:03]} 43... Reb7 {[%clk 0:00:22.2]} 44.
Rb1 {[%clk 0:00:03.2]} 44... Qe4 {[%clk 0:00:20.9]} 45. Qxe4 {[%clk 0:00:03.1]}
45... dxe4 {[%clk 0:00:21.8]} 46. Nd2 {[%clk 0:00:04]} 46... f5 {[%clk 0:00:21]}
47. Rc1 {[%clk 0:00:04.5]} 47... Bb4 {[%clk 0:00:16.3]} 48. Nc4 {[%clk
0:00:04.3]} 48... Rc7 {[%clk 0:00:16.7]} 49. Rb1 {[%clk 0:00:02.9]} 49... Bf8
{[%clk 0:00:16.8]} 50. Na3 {[%clk 0:00:01.3]} 50... Bxa3 {[%clk 0:00:16.5]} 51.
d5 {[%clk 0:00:01.2]} 51... Bd6 {[%clk 0:00:16.1]} 52. g4 {[%clk 0:00:01.9]}
52... Rcb7 {[%clk 0:00:16.4]} 53. Rd1 {[%clk 0:00:02]} 53... Rxb3 {[%clk
0:00:16.3]} 54. gxf5 {[%clk 0:00:02.9]} 54... gxf5 {[%clk 0:00:16.2]} 55. Bh4
{[%clk 0:00:03.6]} 55... Kf7 {[%clk 0:00:16.3]} 56. Bg5 {[%clk 0:00:03.4]} 56...
Rxe3 {[%clk 0:00:15.3]} 57. Rc1 {[%clk 0:00:02.9]} 57... Rb2+ {[%clk 0:00:13.1]}
58. Kh1 {[%clk 0:00:02.2]} 58... Rxh3+ {[%clk 0:00:12.6]} 59. Kg1 {[%clk
0:00:02.8]} 59... Rg3+ {[%clk 0:00:11.2]} 60. Kf1 {[%clk 0:00:03.4]} 60... Rg4
{[%clk 0:00:09.9]} 61. Ke1 {[%clk 0:00:02.9]} 61... Bxf4 {[%clk 0:00:10.2]} 62.
Bxf4 {[%clk 0:00:03.3]} 62... Rxf4 {[%clk 0:00:11.1]} 63. Rc7+ {[%clk
0:00:03.8]} 63... Kf6 {[%clk 0:00:10.8]} 64. Rxh7 {[%clk 0:00:04.7]} 64... Rb1+
{[%clk 0:00:10.4]} 65. Kd2 {[%clk 0:00:04.9]} 65... e3+ {[%clk 0:00:10.5]} 66.
Kxe3 {[%clk 0:00:05]} 66... Re4+ {[%clk 0:00:11]} 67. Kd3 {[%clk 0:00:05.6]}
67... Rd1+ {[%clk 0:00:11.4]} 68. Kc3 {[%clk 0:00:06.2]} 68... Rxd5 {[%clk
0:00:11.8]} 69. Rh6+ {[%clk 0:00:06.9]} 69... Ke5 {[%clk 0:00:12.4]} 70. Rh8
{[%clk 0:00:07]} 70... Re3+ {[%clk 0:00:12]} 71. Kc4 {[%clk 0:00:06.9]} 71...
Rd4+ {[%clk 0:00:11.9]} 72. Kc5 {[%clk 0:00:06.8]} 72... Red3 {[%clk 0:00:12.3]}
73. Re8+ {[%clk 0:00:05.9]} 73... Kf4 {[%clk 0:00:13]} 74. Rf8 {[%clk
0:00:06.7]} 74... Rd5+ {[%clk 0:00:13.2]} 75. Kc4 {[%clk 0:00:07.5]} 75... Rd8
{[%clk 0:00:14.1]} 76. Rf7 {[%clk 0:00:07.4]} 76... R3d7 {[%clk 0:00:14.4]} 77.
Rf6 {[%clk 0:00:07.8]} 77... Ke5 {[%clk 0:00:15]} 78. Rh6 {[%clk 0:00:07.9]}
78... f4 {[%clk 0:00:15.5]} 79. Rh5+ {[%clk 0:00:08.6]} 79... Ke4 {[%clk
0:00:16.1]} 80. Rh4 {[%clk 0:00:08.8]} 80... Ke3 {[%clk 0:00:16.5]} 81. Rh5
{[%clk 0:00:07.8]} 81... f3 {[%clk 0:00:16.8]} 82. Re5+ {[%clk 0:00:08.4]} 82...
Kf4 {[%clk 0:00:17.5]} 83. Re6 {[%clk 0:00:09]} 83... Rd6 {[%clk 0:00:17.3]} 84.
Re7 {[%clk 0:00:09.2]} 84... R8d7 {[%clk 0:00:17.1]} 85. Re8 {[%clk 0:00:09.8]}
85... Rf6 {[%clk 0:00:17.4]} 86. Re1 {[%clk 0:00:08.9]} 86... f2 {[%clk
0:00:17.7]} 87. Rf1 {[%clk 0:00:09.6]} 87... Kf3 {[%clk 0:00:18.4]} 88. Kc3
{[%clk 0:00:10.2]} 88... Ke2 {[%clk 0:00:18.7]} 89. Rd1 {[%clk 0:00:09.8]} 89...
Kxd1 {[%clk 0:00:18]} 90. Kb2 {[%clk 0:00:08.9]} 90... Ke2 {[%clk 0:00:18.1]}
91. Kc3 {[%clk 0:00:09.4]} 91... Rc6+ {[%clk 0:00:18.3]} 92. Kb4 {[%clk
0:00:09.5]} 92... Rb7+ {[%clk 0:00:18.2]} 93. Ka5 {[%clk 0:00:10.4]} 93... Rc8
{[%clk 0:00:17.3]} 94. Ka6 {[%clk 0:00:10.7]} 94... Rb2 {[%clk 0:00:17.5]} 95.
Ka7 {[%clk 0:00:11.6]} 95... Rc1 {[%clk 0:00:17.6]} 96. Ka6 {[%clk 0:00:11.5]}
96... Ra1# {[%clk 0:00:17.9]} 0-1

[Event "Late-Titled-Tuesday-Blitz-February-06-2024"]
[Site "Chess.com"]
[Date "2024.02.06"]
[Round "9"]
[White "HaryKane"]
[Black "TheAlienParty"]
[Result "1/2-1/2"]
[WhiteElo "2559"]
[BlackElo "2406"]
[TimeControl "180+1"]
[EndTime "15:47:10 PST"]
[Termination "Game drawn by repetition"]

1. f4 {[%clk 0:02:53.5]} 1... Nf6 {[%clk 0:02:54.6]} 2. Nf3 {[%clk 0:02:52.8]}
2... g6 {[%clk 0:02:54.7]} 3. d3 {[%clk 0:02:48.3]} 3... d5 {[%clk 0:02:54.5]}
4. e3 {[%clk 0:02:45]} 4... Bg7 {[%clk 0:02:54]} 5. Be2 {[%clk 0:02:45.5]} 5...
c5 {[%clk 0:02:53.7]} 6. O-O {[%clk 0:02:43.5]} 6... Nc6 {[%clk 0:02:53.5]} 7.
Qe1 {[%clk 0:02:40.7]} 7... O-O {[%clk 0:02:53.1]} 8. Bd1 {[%clk 0:02:40.6]}
8... Bf5 {[%clk 0:02:47.4]} 9. Nbd2 {[%clk 0:02:34.9]} 9... Qb6 {[%clk
0:02:39.2]} 10. Kh1 {[%clk 0:02:31.3]} 10... Rad8 {[%clk 0:02:36.1]} 11. e4
{[%clk 0:02:25.5]} 11... dxe4 {[%clk 0:02:35.7]} 12. dxe4 {[%clk 0:02:25.9]}
12... Bc8 {[%clk 0:02:12.1]} 13. e5 {[%clk 0:02:18.3]} 13... Nd5 {[%clk
0:02:11]} 14. Ne4 {[%clk 0:02:17.7]} 14... c4 {[%clk 0:02:09]} 15. c3 {[%clk
0:01:55.4]} 15... Bf5 {[%clk 0:02:07.5]} 16. Nh4 {[%clk 0:01:52.5]} 16... Kh8
{[%clk 0:02:04.4]} 17. Nxf5 {[%clk 0:01:46.8]} 17... gxf5 {[%clk 0:02:04.1]} 18.
Ng5 {[%clk 0:01:41.2]} 18... h6 {[%clk 0:01:58.4]} 19. Qh4 {[%clk 0:01:38.9]}
19... Kg8 {[%clk 0:01:57.6]} 20. Nf3 {[%clk 0:01:22.8]} 20... Ne3 {[%clk
0:01:56.9]} 21. Bxe3 {[%clk 0:01:19.2]} 21... Qxe3 {[%clk 0:01:56.3]} 22. Bc2
{[%clk 0:01:19.8]} 22... e6 {[%clk 0:01:54.9]} 23. Rae1 {[%clk 0:01:18.4]} 23...
Qb6 {[%clk 0:01:53.3]} 24. g4 {[%clk 0:01:18.5]} 24... Qxb2 {[%clk 0:01:47.1]}
25. Re2 {[%clk 0:01:15.2]} 25... Qxc3 {[%clk 0:01:40.8]} 26. gxf5 {[%clk
0:01:14.6]} 26... exf5 {[%clk 0:01:40.2]} 27. Rg2 {[%clk 0:01:09.2]} 27... f6
{[%clk 0:01:24.7]} 28. Qh5 {[%clk 0:00:54]} 28... fxe5 {[%clk 0:01:18.6]} 29.
Bxf5 {[%clk 0:00:38]} 29... Rd6 {[%clk 0:00:53.5]} 30. Rfg1 {[%clk 0:00:27.2]}
30... exf4 {[%clk 0:00:45.3]} 31. Rxg7+ {[%clk 0:00:22.1]} 31... Qxg7 {[%clk
0:00:44.8]} 32. Rxg7+ {[%clk 0:00:23]} 32... Kxg7 {[%clk 0:00:44.8]} 33. Qg4+
{[%clk 0:00:23.6]} 33... Kh8 {[%clk 0:00:42]} 34. Nh4 {[%clk 0:00:21.1]} 34...
Rg8 {[%clk 0:00:35.2]} 35. Ng6+ {[%clk 0:00:20.1]} 35... Rgxg6 {[%clk
0:00:20.2]} 36. Bxg6 {[%clk 0:00:21]} 36... Ne7 {[%clk 0:00:20]} 37. Qxf4 {[%clk
0:00:20.4]} 37... Rxg6 {[%clk 0:00:19.9]} 38. Qxc4 {[%clk 0:00:19]} 38... Kg7
{[%clk 0:00:18.6]} 39. Qd4+ {[%clk 0:00:19.3]} 39... Kf7 {[%clk 0:00:18.5]} 40.
Qxa7 {[%clk 0:00:19.5]} 40... b6 {[%clk 0:00:17.8]} 41. Qb7 {[%clk 0:00:18.7]}
41... Rc6 {[%clk 0:00:17.1]} 42. Qd7 {[%clk 0:00:17.8]} 42... Rc1+ {[%clk
0:00:16.6]} 43. Kg2 {[%clk 0:00:18.1]} 43... Rc2+ {[%clk 0:00:16.7]} 44. Kf1
{[%clk 0:00:18.4]} 44... Rxh2 {[%clk 0:00:15.6]} 45. a4 {[%clk 0:00:17.7]} 45...
Rh5 {[%clk 0:00:14.8]} 46. Ke2 {[%clk 0:00:16.5]} 46... Re5+ {[%clk 0:00:14.4]}
47. Kf2 {[%clk 0:00:16.8]} 47... Re6 {[%clk 0:00:15.3]} 48. Qd8 {[%clk
0:00:15.7]} 48... Rc6 {[%clk 0:00:15.1]} 49. Qh8 {[%clk 0:00:15]} 49... Rf6+
{[%clk 0:00:15]} 50. Ke1 {[%clk 0:00:14.8]} 50... Re6+ {[%clk 0:00:15.4]} 51.
Kd2 {[%clk 0:00:15.1]} 51... Rd6+ {[%clk 0:00:15.1]} 52. Kc2 {[%clk 0:00:14.4]}
52... Rc6+ {[%clk 0:00:15.4]} 53. Kb3 {[%clk 0:00:14]} 53... Rg6 {[%clk
0:00:15]} 54. Qh7+ {[%clk 0:00:13.8]} 54... Ke6 {[%clk 0:00:14.7]} 55. Qh8
{[%clk 0:00:13.5]} 55... Kd7 {[%clk 0:00:14.8]} 56. Qd4+ {[%clk 0:00:13.3]}
56... Rd6 {[%clk 0:00:14.8]} 57. Qg4+ {[%clk 0:00:13.3]} 57... Kc7 {[%clk
0:00:14.3]} 58. Qh4 {[%clk 0:00:13.7]} 58... Kd7 {[%clk 0:00:14.2]} 59. Qh3+
{[%clk 0:00:13.9]} 59... Kc7 {[%clk 0:00:14.2]} 60. Ka3 {[%clk 0:00:14.2]} 60...
Kd8 {[%clk 0:00:13.4]} 61. Qg3 {[%clk 0:00:14.6]} 61... Kd7 {[%clk 0:00:13.2]}
62. Qg4+ {[%clk 0:00:15.1]} 62... Kc7 {[%clk 0:00:12.3]} 63. Qg7 {[%clk
0:00:15]} 63... Kd7 {[%clk 0:00:12.1]} 64. Qh7 {[%clk 0:00:14.7]} 64... Re6
{[%clk 0:00:12]} 65. Kb4 {[%clk 0:00:14.5]} 65... Kc7 {[%clk 0:00:11.7]} 66. Kb3
{[%clk 0:00:14.6]} 66... Kc6 {[%clk 0:00:11.4]} 67. Qf7 {[%clk 0:00:14.4]} 67...
Kd7 {[%clk 0:00:11.5]} 68. Qf3 {[%clk 0:00:13.1]} 68... h5 {[%clk 0:00:11.1]}
69. Qxh5 {[%clk 0:00:12.6]} 69... Kc7 {[%clk 0:00:11]} 70. Qh2+ {[%clk
0:00:12.6]} 70... Kd7 {[%clk 0:00:10.9]} 71. Qh3 {[%clk 0:00:12.9]} 71... Kc7
{[%clk 0:00:11]} 72. Qg3+ {[%clk 0:00:13.2]} 72... Kd7 {[%clk 0:00:10.8]} 73.
Qg2 {[%clk 0:00:13.3]} 73... Nc6 {[%clk 0:00:10.8]} 74. Qg7+ {[%clk 0:00:12.8]}
74... Re7 {[%clk 0:00:10.9]} 75. Qh8 {[%clk 0:00:13]} 75... Re3+ {[%clk
0:00:10.3]} 76. Kb2 {[%clk 0:00:11.1]} 76... Re5 {[%clk 0:00:07.9]} 77. Qa8
{[%clk 0:00:09]} 77... Ra5 {[%clk 0:00:06.1]} 78. Qb7+ {[%clk 0:00:08.5]} 78...
Kd6 {[%clk 0:00:06.5]} 79. Ka3 {[%clk 0:00:07]} 79... b5 {[%clk 0:00:05.5]} 80.
Qh7 {[%clk 0:00:06.9]} 80... Rxa4+ {[%clk 0:00:05.3]} 81. Kb2 {[%clk 0:00:07.3]}
81... Rb4+ {[%clk 0:00:05.3]} 82. Kc2 {[%clk 0:00:07.9]} 82... Rc4+ {[%clk
0:00:05.8]} 83. Kd2 {[%clk 0:00:08.2]} 83... Rd4+ {[%clk 0:00:06.3]} 84. Ke2
{[%clk 0:00:08]} 84... Rd5 {[%clk 0:00:07]} 85. Qh6+ {[%clk 0:00:07.4]} 85...
Kc5 {[%clk 0:00:07.2]} 86. Qf8+ {[%clk 0:00:07.8]} 86... Kb6 {[%clk 0:00:06.3]}
87. Ke1 {[%clk 0:00:06.2]} 87... Re5+ {[%clk 0:00:06.3]} 88. Kd2 {[%clk
0:00:06.3]} 88... Rd5+ {[%clk 0:00:06.6]} 89. Kc2 {[%clk 0:00:06.9]} 89... b4
{[%clk 0:00:06.9]} 90. Kb3 {[%clk 0:00:06.9]} 90... Rc5 {[%clk 0:00:06.8]} 91.
Qg8 {[%clk 0:00:04.9]} 91... Rc3+ {[%clk 0:00:06.7]} 92. Kb2 {[%clk 0:00:05.4]}
92... Na5 {[%clk 0:00:05.7]} 93. Qb8+ {[%clk 0:00:05.2]} 93... Nb7 {[%clk
0:00:05.4]} 94. Qf8 {[%clk 0:00:05.1]} 94... Rc5 {[%clk 0:00:05.1]} 95. Qf6+
{[%clk 0:00:04.8]} 95... Rc6 {[%clk 0:00:04.3]} 96. Qf2+ {[%clk 0:00:04.8]}
96... Nc5 {[%clk 0:00:04]} 97. Qd4 {[%clk 0:00:04.7]} 97... Kb5 {[%clk
0:00:04.1]} 98. Kb1 {[%clk 0:00:04.8]} 98... Ra6 {[%clk 0:00:03.9]} 99. Qd8
{[%clk 0:00:04.5]} 99... Ra3 {[%clk 0:00:03.9]} 100. Qb8+ {[%clk 0:00:04.5]}
100... Kc4 {[%clk 0:00:04.2]} 101. Qg8+ {[%clk 0:00:04.8]} 101... Kb5 {[%clk
0:00:04.5]} 102. Qe8+ {[%clk 0:00:05.2]} 102... Kc4 {[%clk 0:00:04.8]} 103. Qf7+
{[%clk 0:00:05.8]} 103... Kb5 {[%clk 0:00:05]} 104. Qe8+ {[%clk 0:00:06.4]}
104... Kc4 {[%clk 0:00:05.2]} 105. Qf7+ {[%clk 0:00:07]} 105... Kb5 {[%clk
0:00:05.5]} 106. Qe8+ {[%clk 0:00:07.6]} 1/2-1/2

[Event "Late-Titled-Tuesday-Blitz-February-06-2024"]
[Site "Chess.com"]
[Date "2024.02.06"]
[Round "10"]
[White "carloseduar100"]
[Black "Onthequiet"]
[Result "1-0"]
[WhiteElo "2351"]
[BlackElo "2445"]
[TimeControl "180+1"]
[EndTime "15:50:14 PST"]
[Termination "carloseduar100 won by resignation"]

1. d4 {[%clk 0:02:59.9]} 1... Nf6 {[%clk 0:02:53.4]} 2. Bg5 {[%clk 0:02:57.7]}
2... Ne4 {[%clk 0:02:48.3]} 3. h4 {[%clk 0:02:56.1]} 3... c5 {[%clk 0:02:45.5]}
4. d5 {[%clk 0:02:55.8]} 4... Qa5+ {[%clk 0:02:41.4]} 5. c3 {[%clk 0:02:55.4]}
5... h6 {[%clk 0:02:38.2]} 6. Bf4 {[%clk 0:02:54.7]} 6... d6 {[%clk 0:02:30.1]}
7. Nd2 {[%clk 0:02:53.5]} 7... Nxd2 {[%clk 0:02:27.3]} 8. Qxd2 {[%clk
0:02:52.4]} 8... Na6 {[%clk 0:02:27.3]} 9. Nf3 {[%clk 0:02:52]} 9... Nc7 {[%clk
0:02:27.3]} 10. e4 {[%clk 0:02:52.3]} 10... Bg4 {[%clk 0:02:26.5]} 11. Be2
{[%clk 0:02:52.7]} 11... Bxf3 {[%clk 0:02:26]} 12. Bxf3 {[%clk 0:02:49]} 12...
O-O-O {[%clk 0:02:23.4]} 13. b4 {[%clk 0:02:46.6]} 13... Qa3 {[%clk 0:02:16.6]}
14. Rb1 {[%clk 0:02:39.5]} 14... c4 {[%clk 0:02:12]} 15. Qe2 {[%clk 0:02:27.8]}
15... b5 {[%clk 0:02:05.5]} 16. O-O {[%clk 0:02:10.3]} 16... g5 {[%clk
0:02:01.8]} 17. Bc1 {[%clk 0:02:10.3]} 17... Qxa2 {[%clk 0:01:57.2]} 18. Qxa2
{[%clk 0:02:09.2]} 1-0

[Event "Late-Titled-Tuesday-Blitz-February-06-2024"]
[Site "Chess.com"]
[Date "2024.02.06"]
[Round "10"]
[White "winniethepooh04"]
[Black "Gryffindorac8"]
[Result "1/2-1/2"]
[WhiteElo "2528"]
[BlackElo "2400"]
[TimeControl "180+1"]
[EndTime "15:51:11 PST"]
[Termination "Game drawn by agreement"]

1. d4 {[%clk 0:03:00.9]} 1... Nf6 {[%clk 0:02:58.5]} 2. Nf3 {[%clk 0:03:01.5]}
2... e6 {[%clk 0:02:57.5]} 3. Bf4 {[%clk 0:03:02]} 3... d5 {[%clk 0:02:56.3]} 4.
e3 {[%clk 0:03:02.5]} 4... c5 {[%clk 0:02:55.9]} 5. c3 {[%clk 0:03:02.5]} 5...
Bd6 {[%clk 0:02:54.6]} 6. Bg3 {[%clk 0:03:02.3]} 6... O-O {[%clk 0:02:52.9]} 7.
Nbd2 {[%clk 0:03:02.5]} 7... Qc7 {[%clk 0:02:52.5]} 8. Bd3 {[%clk 0:03:02.3]}
8... Nbd7 {[%clk 0:02:51.4]} 9. O-O {[%clk 0:03:01.9]} 9... e5 {[%clk 0:02:51]}
10. dxe5 {[%clk 0:03:01.8]} 10... Nxe5 {[%clk 0:02:51.9]} 11. Nxe5 {[%clk
0:03:02.3]} 11... Bxe5 {[%clk 0:02:52.8]} 12. Nf3 {[%clk 0:03:02.7]} 12... Bxg3
{[%clk 0:02:51.4]} 13. hxg3 {[%clk 0:03:03.6]} 13... Bg4 {[%clk 0:02:48.7]} 14.
Be2 {[%clk 0:03:03.8]} 14... Rad8 {[%clk 0:02:47]} 15. Qb3 {[%clk 0:03:03]}
15... b6 {[%clk 0:02:33.6]} 16. Rad1 {[%clk 0:03:02]} 16... Rfe8 {[%clk
0:02:33.7]} 17. Rfe1 {[%clk 0:02:57.9]} 17... h5 {[%clk 0:02:30.9]} 18. c4
{[%clk 0:02:56]} 18... Be6 {[%clk 0:02:18.1]} 19. cxd5 {[%clk 0:02:55.7]} 19...
Bxd5 {[%clk 0:02:12.9]} 20. Bc4 {[%clk 0:02:55.1]} 20... Bxc4 {[%clk 0:02:07.7]}
21. Qxc4 {[%clk 0:02:55.3]} 21... Rxd1 {[%clk 0:02:04.1]} 22. Rxd1 {[%clk
0:02:56.2]} 22... Rd8 {[%clk 0:02:03.1]} 23. Qc2 {[%clk 0:02:53.2]} 23... Rd7
{[%clk 0:01:57.1]} 24. a3 {[%clk 0:02:49.9]} 24... Qd8 {[%clk 0:01:53.2]} 25.
Rxd7 {[%clk 0:02:49.4]} 25... Qxd7 {[%clk 0:01:54]} 26. Qd2 {[%clk 0:02:47.8]}
26... Qxd2 {[%clk 0:01:41.7]} 27. Nxd2 {[%clk 0:02:48.7]} 27... Kf8 {[%clk
0:01:41.8]} 28. Kf1 {[%clk 0:02:48.3]} 28... Ke7 {[%clk 0:01:41.3]} 29. Ke2
{[%clk 0:02:48.5]} 29... Kd6 {[%clk 0:01:40.1]} 30. Kd3 {[%clk 0:02:48.2]} 30...
b5 {[%clk 0:01:39.3]} 31. b3 {[%clk 0:02:48.3]} 31... Ng4 {[%clk 0:01:25.4]} 32.
f3 {[%clk 0:02:39.6]} 32... Ne5+ {[%clk 0:01:24.7]} 33. Kc3 {[%clk 0:02:37.4]}
33... a5 {[%clk 0:01:17.5]} 34. a4 {[%clk 0:02:30.7]} 1/2-1/2

[Event "Late-Titled-Tuesday-Blitz-February-06-2024"]
[Site "Chess.com"]
[Date "2024.02.06"]
[Round "10"]
[White "traviscottofficial"]
[Black "Englishman_18"]
[Result "1-0"]
[WhiteElo "2682"]
[BlackElo "2447"]
[TimeControl "180+1"]
[EndTime "15:51:40 PST"]
[Termination "traviscottofficial won by resignation"]

1. Nf3 {[%clk 0:03:00.9]} 1... Nf6 {[%clk 0:02:59.5]} 2. g3 {[%clk 0:03:01.4]}
2... g6 {[%clk 0:02:59.7]} 3. Bg2 {[%clk 0:03:01.6]} 3... Bg7 {[%clk 0:03:00]}
4. O-O {[%clk 0:03:02.3]} 4... O-O {[%clk 0:03:00]} 5. c4 {[%clk 0:03:03.2]}
5... d5 {[%clk 0:02:58.6]} 6. cxd5 {[%clk 0:03:04.1]} 6... Nxd5 {[%clk 0:02:59]}
7. Nc3 {[%clk 0:03:05]} 7... c5 {[%clk 0:02:55]} 8. Nxd5 {[%clk 0:02:57.7]} 8...
Qxd5 {[%clk 0:02:53.9]} 9. Qc2 {[%clk 0:02:58.2]} 9... Nc6 {[%clk 0:02:49.9]}
10. a3 {[%clk 0:02:57.9]} 10... Qd6 {[%clk 0:02:43.1]} 11. d3 {[%clk 0:02:58]}
11... Bd7 {[%clk 0:02:42]} 12. Rb1 {[%clk 0:02:52.8]} 12... b6 {[%clk
0:02:40.7]} 13. Bf4 {[%clk 0:02:46.5]} 13... e5 {[%clk 0:02:40.3]} 14. Bd2
{[%clk 0:02:47.2]} 14... Rad8 {[%clk 0:02:37]} 15. b4 {[%clk 0:02:46.6]} 15...
cxb4 {[%clk 0:02:27]} 16. axb4 {[%clk 0:02:46]} 16... Bg4 {[%clk 0:02:17.9]} 17.
b5 {[%clk 0:02:24.2]} 17... Nd4 {[%clk 0:01:52]} 18. Nxd4 {[%clk 0:02:23.9]}
18... Qxd4 {[%clk 0:01:51.1]} 19. Rb4 {[%clk 0:02:19.7]} 19... Rc8 {[%clk
0:01:43]} 20. Qa4 {[%clk 0:02:07.3]} 20... Qd7 {[%clk 0:01:30.3]} 21. Rxg4
{[%clk 0:02:06.6]} 21... a6 {[%clk 0:01:24.8]} 22. Rb4 {[%clk 0:01:54.6]} 22...
a5 {[%clk 0:01:21.1]} 23. Rc4 {[%clk 0:01:54.8]} 23... Rxc4 {[%clk 0:01:19.2]}
24. Qxc4 {[%clk 0:01:54.3]} 24... Rc8 {[%clk 0:01:19.9]} 25. Bc6 {[%clk
0:01:53.9]} 25... Qd6 {[%clk 0:01:20.1]} 26. Be3 {[%clk 0:01:53]} 26... Rb8
{[%clk 0:01:15]} 27. Bd5 {[%clk 0:01:53]} 27... Qe7 {[%clk 0:01:12.9]} 28. Rc1
{[%clk 0:01:51.3]} 1-0

[Event "Late-Titled-Tuesday-Blitz-February-06-2024"]
[Site "Chess.com"]
[Date "2024.02.06"]
[Round "10"]
[White "aghasiyevkamal"]
[Black "Laico"]
[Result "1-0"]
[WhiteElo "2596"]
[BlackElo "2366"]
[TimeControl "180+1"]
[EndTime "15:52:01 PST"]
[Termination "aghasiyevkamal won by resignation"]

1. d4 {[%clk 0:03:00.9]} 1... e6 {[%clk 0:02:56]} 2. c4 {[%clk 0:03:00.7]} 2...
f5 {[%clk 0:02:55.8]} 3. g3 {[%clk 0:03:00.2]} 3... Nf6 {[%clk 0:02:55.6]} 4.
Bg2 {[%clk 0:03:00.7]} 4... Be7 {[%clk 0:02:56.4]} 5. Nc3 {[%clk 0:03:00.9]}
5... O-O {[%clk 0:02:57.3]} 6. Nh3 {[%clk 0:03:00.4]} 6... Bb4 {[%clk
0:02:57.8]} 7. O-O {[%clk 0:03:00.4]} 7... Bxc3 {[%clk 0:02:58.2]} 8. bxc3
{[%clk 0:03:01.1]} 8... d6 {[%clk 0:02:56.3]} 9. c5 {[%clk 0:03:01]} 9... d5
{[%clk 0:02:48.8]} 10. Nf4 {[%clk 0:02:56.6]} 10... c6 {[%clk 0:02:42.9]} 11.
Qc2 {[%clk 0:02:56.3]} 11... Qe7 {[%clk 0:02:38.2]} 12. Nd3 {[%clk 0:02:56]}
12... Nbd7 {[%clk 0:02:37.4]} 13. Bf4 {[%clk 0:02:55.6]} 13... Nh5 {[%clk
0:02:37]} 14. Bd6 {[%clk 0:02:55.8]} 14... Qg5 {[%clk 0:02:33.4]} 15. Bxf8
{[%clk 0:02:55.7]} 15... Nxf8 {[%clk 0:02:34.3]} 16. c4 {[%clk 0:02:54.7]} 16...
Nf6 {[%clk 0:02:30]} 17. Ne5 {[%clk 0:02:53.3]} 17... Qh5 {[%clk 0:02:25.1]} 18.
Rab1 {[%clk 0:02:49.5]} 18... N8d7 {[%clk 0:02:15.2]} 19. Nxd7 {[%clk
0:02:49.3]} 19... Nxd7 {[%clk 0:02:16]} 20. e4 {[%clk 0:02:34.4]} 20... fxe4
{[%clk 0:02:00.6]} 21. f3 {[%clk 0:02:34]} 21... exf3 {[%clk 0:01:54]} 22. Bxf3
{[%clk 0:02:33.8]} 22... Qg5 {[%clk 0:01:54.2]} 23. Rbe1 {[%clk 0:02:31.2]}
23... Nf6 {[%clk 0:01:49.5]} 24. Re5 {[%clk 0:02:30.9]} 24... Qh6 {[%clk
0:01:45.4]} 25. cxd5 {[%clk 0:02:28.2]} 25... exd5 {[%clk 0:01:36.4]} 26. Rfe1
{[%clk 0:02:27.9]} 26... Bg4 {[%clk 0:01:32]} 27. Bxg4 {[%clk 0:02:24.3]} 27...
Nxg4 {[%clk 0:01:32.9]} 28. Re8+ {[%clk 0:02:24]} 28... Rxe8 {[%clk 0:01:31.3]}
29. Rxe8+ {[%clk 0:02:24.5]} 29... Kf7 {[%clk 0:01:31.7]} 30. Qe2 {[%clk
0:02:14.3]} 30... Qf6 {[%clk 0:01:31.8]} 31. Kg2 {[%clk 0:02:05]} 31... Nf2
{[%clk 0:01:03.6]} 32. Re3 {[%clk 0:01:58.1]} 1-0